bitfinex/quotes_SOLUSD_20240826
["timestamp","ask_amount","ask_price","bid_price","bid_amount"]
[1724715738294,18.61538669,157.68,157.64,45.0]
[1724715739822,12.27348669,157.66,157.64,45.0]
[1724715746900,12.27348669,157.66,157.62,0.817899]
[1724715746901,18.61638669,157.66,157.62,0.817899]
[1724715747104,12.27348669,157.64,157.62,45.817899]
[1724715751031,18.61678669,157.65,157.62,45.817899]
[1724715754821,12.27348669,157.63,157.62,0.817899]
[1724715755900,18.61738669,157.63,157.62,0.817899]
[1724715757226,6.3436,157.64,157.62,0.817899]
[1724715757419,12.27348669,157.63,157.62,0.817899]
[1724715760332,18.61738669,157.63,157.62,0.817899]
[1724715761106,6.3451,157.6,157.55,6.3471]
[1724715761322,12.27348669,157.59,157.55,6.3471]
[1724715761510,12.27348669,157.59,157.56,7.93576155]
[1724715761711,12.27348669,157.59,157.57,45.0]
[1724715763041,12.27348669,157.6,157.57,45.0]
[1724715763701,12.27348669,157.6,157.58,6.63240108]
[1724715763898,12.27348669,157.6,157.59,45.0]
[1724715769840,12.27348669,157.6,157.58,6.63240108]
[1724715770643,12.27348669,157.6,157.55,6.347]
[1724715770940,12.27348669,157.57,157.55,6.347]
[1724715771947,12.27348669,157.57,157.56,45.0]
[1724715773720,12.27348669,157.57,157.56,51.62405366]
[1724715773922,12.27348669,157.57,157.56,45.0]
[1724715774137,12.27348669,157.57,157.53,22.217]
[1724715774648,12.27348669,157.57,157.54,45.0]
[1724715775034,12.27348669,157.57,157.53,22.217]
[1724715776231,12.27348669,157.57,157.54,45.0]
[1724715780573,6.3468,157.56,157.54,45.0]
[1724715780746,12.27348669,157.55,157.51,6.3484]
[1724715780943,12.27348669,157.55,157.52,1.58925353]
[1724715781141,12.27348669,157.55,157.52,6.3482]
[1724715781647,12.27348669,157.55,157.52,7.93745505]
[1724715782241,12.27348669,157.55,157.53,6.3478]
[1724715782643,12.27348669,157.55,157.54,45.0]
[1724715792668,12.27348669,157.57,157.54,51.3475]
[1724715792977,15.8626,157.61,157.54,60.8684]
[1724715792978,6.3449,157.61,157.54,60.8684]
[1724715793188,18.61838669,157.61,157.54,60.8684]
[1724715793359,18.61838669,157.61,157.55,1.26912781]
[1724715793687,18.61838669,157.61,157.54,60.8684]
[1724715793980,6.3449,157.61,157.54,60.8684]
[1724715794183,18.61838669,157.61,157.54,60.8684]
[1724715794489,18.61838669,157.61,157.55,1.26912851]
[1724715794666,18.61838669,157.61,157.57,6.3462]
[1724715794849,18.61838669,157.61,157.58,45.0]
[1724715796790,18.61838669,157.61,157.57,45.0]
[1724715797579,12.27348669,157.61,157.57,51.3463]
[1724715798786,18.61828669,157.61,157.57,51.3463]
[1724715799653,22.1515,157.64,157.57,45.0]
[1724715799859,20.0,157.63,157.58,15.8642]
[1724715800079,18.61788669,157.62,157.59,45.0]
[1724715801169,12.27348669,157.6,157.59,45.0]
[1724715801380,12.27348669,157.6,157.58,45.0]
[1724715801694,12.27348669,157.6,157.57,45.0]
[1724715802378,18.61868669,157.6,157.55,15.8675]
[1724715802582,12.27348669,157.58,157.55,15.8675]
[1724715803480,12.27348669,157.58,157.56,6.3467]
[1724715803855,12.27348669,157.58,157.57,45.0]
[1724715804372,12.27348669,157.6,157.57,45.0]
[1724715804768,6.3444,157.62,157.57,51.3463]
[1724715804986,18.61788669,157.62,157.58,1.26903299]
[1724715805585,18.61788669,157.62,157.57,51.3463]
[1724715806288,12.27348669,157.62,157.57,45.0]
[1724715806609,12.27348669,157.59,157.56,45.0]
[1724715807687,12.27348669,157.59,157.56,51.3467]
[1724715809511,12.27348669,157.59,157.57,1.58909708]
[1724715809684,12.27348669,157.59,157.56,51.3467]
[1724715810098,12.27348669,157.59,157.57,1.58909727]
[1724715810278,12.27348669,157.59,157.56,51.3467]
[1724715810602,12.27348669,157.59,157.57,1.58908766]
[1724715810770,12.27348669,157.59,157.56,51.3467]
[1724715810974,12.27348669,157.59,157.57,1.58908766]
[1724715811276,12.27348669,157.59,157.56,51.3467]
[1724715811477,12.27348669,157.59,157.57,1.58908733]
[1724715811683,12.27348669,157.59,157.56,51.3467]
[1724715811893,12.27348669,157.59,157.57,1.58908733]
[1724715812089,12.27348669,157.59,157.56,51.3467]
[1724715812308,12.27348669,157.59,157.57,1.58908766]
[1724715812500,12.27348669,157.59,157.56,51.3467]
[1724715812702,12.27348669,157.59,157.57,1.58908733]
[1724715812996,12.27348669,157.59,157.56,51.3467]
[1724715813390,12.27348669,157.59,157.57,1.58908632]
[1724715813579,12.27348669,157.59,157.56,51.3467]
[1724715814608,12.27348669,157.59,157.57,1.58908766]
[1724715814904,12.27348669,157.59,157.56,51.3467]
[1724715815106,12.27348669,157.59,157.57,1.58908733]
[1724715815285,12.27348669,157.59,157.56,51.3467]
[1724715815482,12.27348669,157.59,157.57,1.58908732]
[1724715815686,12.27348669,157.59,157.56,51.3467]
[1724715816186,12.27348669,157.59,157.57,1.58910528]
[1724715816387,12.27348669,157.59,157.56,51.3467]
[1724715816704,12.27348669,157.59,157.57,1.58910528]
[1724715816915,12.27348669,157.59,157.56,51.3467]
[1724715817084,12.27348669,157.59,157.57,1.58907943]
[1724715817420,12.27348669,157.59,157.56,51.3467]
[1724715818407,6.3468,157.56,157.51,6.3484]
[1724715818612,12.27348669,157.57,157.53,6.3478]
[1724715818913,12.27348669,157.57,157.54,1.58942764]
[1724715819082,12.27348669,157.57,157.55,1.58942764]
[1724715819282,12.27348669,157.57,157.53,6.3478]
[1724715819620,12.27348669,157.57,157.54,1.58937334]
[1724715819787,12.27348669,157.57,157.54,46.58937334]
[1724715820101,12.27348669,157.57,157.54,45.0]
[1724715820309,18.61988669,157.57,157.54,45.0]
[1724715822411,12.27348669,157.57,157.54,45.0]
[1724715822715,28.07458669,157.59,157.54,51.3475]
[1724715823384,15.8011,157.59,157.54,51.3475]
[1724715823586,34.42018669,157.59,157.55,1.58924139]
[1724715823804,34.42018669,157.59,157.54,51.3475]
[1724715824107,34.42018669,157.59,157.55,1.58921965]
[1724715824305,34.42018669,157.59,157.54,51.3475]
[1724715824610,34.42018669,157.59,157.55,1.58921932]
[1724715824807,34.42018669,157.59,157.54,51.3475]
[1724715825118,34.42018669,157.59,157.55,1.58923284]
[1724715825418,12.27348669,157.57,157.54,45.0]
[1724715825595,12.27348669,157.57,157.55,1.58928213]
[1724715825805,12.27348669,157.57,157.54,45.0]
[1724715825987,12.27348669,157.57,157.55,1.58930747]
[1724715826490,15.8011,157.59,157.55,7.93630747]
[1724715826491,22.1467,157.59,157.55,7.93630747]
[1724715826699,12.27348669,157.59,157.56,45.0]
[1724715828912,18.61908669,157.59,157.56,45.0]
[1724715831107,12.27348669,157.57,157.53,6.3477]
[1724715831419,12.27348669,157.57,157.54,46.58924067]
[1724715831808,12.27348669,157.57,157.55,1.58924067]
[1724715832024,12.27348669,157.57,157.54,45.0]
[1724715832229,6.346,157.58,157.54,51.3475]
[1724715832428,6.346,157.58,157.55,1.58924334]
[1724715832618,6.346,157.58,157.54,51.3475]
[1724715832935,18.61908669,157.59,157.55,1.58924133]
[1724715833123,18.61908669,157.59,157.54,51.3475]
[1724715833425,18.61908669,157.59,157.55,1.58924133]
[1724715833726,18.61908669,157.59,157.54,51.3475]
[1724715834027,18.61908669,157.59,157.55,1.58924133]
[1724715834195,18.61908669,157.59,157.54,51.3475]
[1724715834402,18.61908669,157.59,157.55,7.93624133]
[1724715834706,18.61908669,157.59,157.56,45.0]
[1724715836823,18.61858669,157.61,157.57,1.58909025]
[1724715837033,18.61908669,157.59,157.56,45.0]
[1724715837324,18.61908669,157.59,157.55,45.0]
[1724715838631,18.61908669,157.59,157.55,51.3471]
[1724715839619,12.27348669,157.59,157.55,51.3471]
[1724715839830,6.3451,157.61,157.55,45.0]
[1724715840003,15.8011,157.63,157.56,17.45552402]
[1724715840202,15.8011,157.63,157.57,51.23402687]
[1724715840500,15.8011,157.63,157.58,1.58912402]
[1724715840829,12.27348669,157.62,157.57,45.0]
[1724715841035,12.27348669,157.62,157.58,1.58895789]
[1724715841319,12.27348669,157.62,157.57,45.0]
[1724715841522,12.27348669,157.62,157.58,1.58893574]
[1724715841737,12.27348669,157.62,157.59,6.3455]
[1724715842042,12.27348669,157.62,157.6,45.0]
[1724715844137,6.3436,157.64,157.6,45.0]
[1724715844446,18.61708669,157.64,157.6,45.0]
[1724715846243,18.61708669,157.64,157.6,51.345]
[1724715846538,12.27348669,157.64,157.6,45.0]
[1724715846741,12.27348669,157.64,157.61,1.26879141]
[1724715846943,12.27348669,157.64,157.61,46.26879141]
[1724715847244,12.27348669,157.64,157.61,45.0]
[1724715847549,6.3431,157.65,157.61,45.0]
[1724715847739,18.61628669,157.66,157.61,51.3446]
[1724715847951,397.1534,157.7,157.61,45.0]
[1724715848115,16.5429,157.71,157.65,6.343]
[1724715848451,12.27348669,157.69,157.66,45.0]
[1724715848613,12.27348669,157.69,157.64,15.8584]
[1724715848813,12.27348669,157.69,157.65,45.0]
[1724715849627,6.3421,157.68,157.65,45.0]
[1724715854235,6.3416,157.69,157.65,45.0]
[1724715855116,6.3416,157.69,157.65,51.343]
[1724715856051,6.3416,157.69,157.65,45.0]
[1724715857532,6.3416,157.69,157.65,51.3431]
[1724715858950,6.3407,157.71,157.65,45.0]
[1724715859151,18.61378669,157.72,157.67,6.342]
[1724715859440,18.61378669,157.72,157.68,45.0]
[1724715860343,12.27348669,157.7,157.68,45.0]
[1724715860525,12.27348669,157.7,157.67,45.0]
[1724715861534,12.27348669,157.7,157.67,51.3423]
[1724715862325,6.3408,157.71,157.67,51.3423]
[1724715862527,18.61428669,157.71,157.67,51.3423]
[1724715863150,6.34,157.73,157.67,45.0]
[1724715863322,18.61378669,157.72,157.68,6.3418]
[1724715863524,18.61378669,157.72,157.69,45.0]
[1724715863725,18.61378669,157.72,157.67,51.3423]
[1724715866422,6.3408,157.71,157.67,51.3423]
[1724715873956,6.3376,157.79,157.74,6.3394]
[1724715874127,6.3376,157.79,157.75,45.0]
[1724715874332,6.3376,157.79,157.75,46.26766391]
[1724715875156,21.6154,157.8,157.76,6.3386]
[1724715875332,21.6154,157.8,157.77,45.0]
[1724715875643,12.27348669,157.79,157.75,22.1863]
[1724715875951,12.27348669,157.79,157.75,15.8472]
[1724715876156,12.27348669,157.79,157.76,45.0]
[1724715877632,18.61098669,157.79,157.76,45.0]
[1724715878332,12.27348669,157.79,157.76,45.0]
[1724715883561,18.61098669,157.79,157.76,45.0]
[1724715883768,18.61078669,157.8,157.76,45.0]
[1724715886654,12.27348669,157.78,157.76,45.0]
[1724715886868,18.61138669,157.78,157.73,6.3399]
[1724715887172,18.61138669,157.78,157.74,45.0]
[1724715890491,12.27348669,157.76,157.72,15.8508]
[1724715890672,18.61228669,157.76,157.72,15.8508]
[1724715890865,18.61228669,157.76,157.73,45.0]
[1724715898086,12.27348669,157.76,157.69,15.8533]
[1724715898267,12.27348669,157.72,157.69,15.8533]
[1724715898465,12.27348669,157.72,157.69,22.1947]
[1724715899684,12.27348669,157.72,157.7,45.0]
[1724715900889,12.27348669,157.74,157.7,51.3409]
[1724715901489,6.3395,157.75,157.7,51.3409]
[1724715901686,6.3395,157.75,157.71,6.3407]
[1724715901870,6.3395,157.75,157.72,45.0]
[1724715902278,18.61208669,157.77,157.72,45.0]
[1724715902586,6.3386,157.77,157.72,45.0]
[1724715902782,6.3386,157.77,157.73,6.3399]
[1724715902984,6.3386,157.77,157.74,45.0]
[1724715904086,6.3391,157.75,157.74,45.0]
[1724715904391,6.3391,157.75,157.71,15.8512]
[1724715904582,12.27348669,157.74,157.72,45.0]
[1724715904987,12.27348669,157.74,157.72,51.3403]
[1724715905518,12.27348669,157.74,157.72,45.0]
[1724715906294,18.61228669,157.76,157.72,45.0]
[1724715906890,12.27348669,157.74,157.72,45.0]
[1724715907192,12.27348669,157.74,157.64,6.0711]
[1724715907392,12.27348669,157.72,157.67,6.342]
[1724715907692,12.27348669,157.72,157.68,6.3419]
[1724715908598,6.3403,157.73,157.68,6.3419]
[1724715908795,12.27348669,157.72,157.68,6.3419]
[1724715909302,12.27348669,157.72,157.69,45.0]
[1724715910209,12.27348669,157.74,157.7,6.3409]
[1724715910505,12.27348669,157.74,157.71,45.0]
[1724715912986,18.61318669,157.74,157.71,45.0]
[1724715913304,12.27348669,157.72,157.7,45.0]
[1724715913495,12.27348669,157.72,157.68,22.1959]
[1724715913496,18.61388669,157.72,157.68,15.8542]
[1724715914709,18.61388669,157.72,157.69,45.0]
[1724715915006,12.27348669,157.72,157.69,45.0]
[1724715916308,18.61388669,157.72,157.69,45.0]
[1724715918806,18.61338669,157.73,157.69,45.0]
[1724715919587,6.3396,157.74,157.69,51.3415]
[1724715921204,12.27348669,157.73,157.69,51.3415]
[1724715923697,12.27348669,157.73,157.7,6.3409]
[1724715924000,12.27348669,157.73,157.71,45.0]
[1724715925323,6.3392,157.75,157.71,51.3407]
[1724715925496,12.27348669,157.74,157.71,51.3407]
[1724715927708,12.27348669,157.74,157.71,45.0]
[1724715928606,18.61308669,157.74,157.71,45.0]
[1724715935704,6.34,157.73,157.72,45.0]
[1724715935904,6.34,157.73,157.7,45.0]
[1724715936324,18.61298669,157.74,157.7,45.0]
[1724715938228,18.61298669,157.74,157.7,51.341]
[1724715940241,6.34,157.73,157.7,45.0]
[1724715940736,18.61308669,157.74,157.7,45.0]
[1724715944339,18.61308669,157.74,157.7,51.3411]
[1724715946944,12.27348669,157.74,157.7,51.3411]
[1724715956626,6.3394,157.75,157.7,51.3411]
[1724715956926,12.27348669,157.74,157.7,51.3411]
[1724715959155,12.27348669,157.74,157.71,1.5877319]
[1724715959453,12.27348669,157.74,157.7,51.3411]
[1724715959655,12.27348669,157.74,157.71,1.58773157]
[1724715959830,12.27348669,157.74,157.7,51.3411]
[1724715960030,12.27348669,157.74,157.71,1.5877319]
[1724715960258,12.27348669,157.74,157.7,51.3411]
[1724715960431,12.27348669,157.74,157.71,1.58773157]
[1724715960630,12.27348669,157.74,157.7,51.3411]
[1724715960827,12.27348669,157.74,157.71,1.5877319]
[1724715961028,6.5147,157.8,157.7,45.0]
[1724715961260,6.3372,157.8,157.75,6.339]
[1724715961434,18.61068669,157.8,157.76,45.0]
[1724715965246,15.2001,157.86,157.78,6.3378]
[1724715965458,6.3362,157.83,157.79,45.0]
[1724715965761,12.27348669,157.82,157.79,45.0]
[1724715965925,18.60988669,157.82,157.79,45.0]
[1724715966661,6.3364,157.82,157.79,45.0]
[1724715966842,18.60988669,157.82,157.79,45.0]
[1724715968331,18.60988669,157.82,157.78,45.0]
[1724715980450,18.60988669,157.82,157.78,51.3378]
[1724715983971,12.27348669,157.8,157.78,45.0]
[1724715984166,18.61058669,157.8,157.77,45.0]
[1724715984863,12.27348669,157.8,157.77,45.0]
[1724715986281,18.61138669,157.78,157.73,31.7009]
[1724715986463,6.3377,157.79,157.74,6.3393]
[1724715986647,12.27348669,157.77,157.73,15.8495]
[1724715987150,12.27348669,157.75,157.7,22.4148]
[1724715987350,12.27348669,157.73,157.7,22.1934]
[1724715987758,12.27348669,157.73,157.69,6.3415]
[1724715988272,12.27348669,157.73,157.67,15.8558]
[1724715988460,12.27348669,157.73,157.68,6.3415]
[1724715989871,12.27348669,157.73,157.69,45.0]
[1724715991852,12.27348669,157.71,157.69,45.0]
[1724715994963,18.61448669,157.71,157.67,15.8558]
[1724715995167,16.5763,157.75,157.66,6.6045944]
[1724715995168,12.27348669,157.69,157.66,6.6045944]
[1724715997784,12.27348669,157.69,157.66,12.9472944]
[1724715997990,18.61428669,157.71,157.67,45.0]
[1724716004973,6.342,157.68,157.66,6.60607894]
[1724716005207,12.27348669,157.67,157.64,15.8589]
[1724716005369,19.43895446,157.67,157.63,6.3439]
[1724716005702,12.27348669,157.65,157.61,31.1328]
[1724716005873,12.27348669,157.63,157.58,28.7237259]
[1724716006072,12.27348669,157.63,157.59,6.3452]
[1724716006372,18.61748669,157.63,157.59,6.3452]
[1724716006694,18.61828669,157.61,157.56,6.3467]
[1724716006919,12.27348669,157.59,157.56,6.3467]
[1724716007106,12.27348669,157.59,157.55,22.2149]
[1724716007408,18.61898669,157.59,157.55,15.8678]
[1724716007699,12.27348669,157.59,157.55,22.2149]
[1724716008149,18.61908669,157.59,157.54,6.3475]
[1724716008472,12.27348669,157.59,157.53,15.1695]
[1724716008675,12.27348669,157.59,157.54,6.3472]
[1724716009884,18.61908669,157.59,157.54,6.3472]
[1724716010491,18.61908669,157.59,157.55,45.0]
[1724716013388,6.346,157.58,157.55,45.0]
[1724716014393,18.61908669,157.59,157.55,45.0]
[1724716018791,12.27348669,157.57,157.55,45.0]
[1724716019715,12.27348669,157.58,157.55,45.0]
[1724716020016,12.27348669,157.58,157.55,51.3469]
[1724716021126,12.27348669,157.58,157.55,45.0]
[1724716021517,18.61948669,157.58,157.55,45.0]
[1724716025537,12.27348669,157.56,157.46,6.878499]
[1724716025699,18.62148669,157.53,157.48,6.3499]
[1724716026338,18.62148669,157.53,157.48,22.2244]
[1724716026704,18.62148669,157.53,157.49,45.0]
[1724716026899,18.62148669,157.53,157.48,22.2244]
[1724716027300,12.27348669,157.53,157.49,6.3495]
[1724716028023,16.6108,157.57,157.48,15.8745]
[1724716028209,16.6108,157.57,157.51,15.8716]
[1724716028405,16.6108,157.57,157.52,45.0]
[1724716029011,22.9574,157.57,157.52,51.3482]
[1724716031338,35.23088669,157.57,157.52,51.3482]
[1724716031835,6.3468,157.56,157.52,51.3482]
[1724716032322,6.3468,157.56,157.52,45.0]
[1724716032626,6.3473,157.55,157.52,45.0]
[1724716032925,18.62078669,157.55,157.52,45.0]
[1724716034234,18.62078669,157.55,157.51,15.8716]
[1724716035127,12.27348669,157.53,157.5,6.349]
[1724716035317,12.27348669,157.53,157.49,6.3495]
[1724716035651,18.62158669,157.53,157.48,22.2242]
[1724716035838,6.3484,157.52,157.48,22.2242]
[1724716036035,12.27348669,157.51,157.48,15.8744]
[1724716038335,6.3484,157.52,157.48,23.49415333]
[1724716038512,6.348,157.53,157.49,51.3495]
[1724716039119,6.3487,157.52,157.48,15.8744]
[1724716039432,18.62218669,157.52,157.48,15.8744]
[1724716040113,6.348,157.53,157.49,45.0]
[1724716040313,18.62108669,157.54,157.49,51.3495]
[1724716042909,6.3482,157.53,157.49,6.3495]
[1724716044045,18.62118669,157.54,157.49,6.3495]
[1724716044256,18.62118669,157.54,157.5,45.0]
[1724716045314,18.62048669,157.56,157.5,60.8725]
[1724716046320,18.62048669,157.56,157.51,6.3487]
[1724716046526,19.44365446,157.56,157.52,45.0]
[1724716047220,18.62048669,157.56,157.52,45.0]
[1724716048918,6.347,157.56,157.52,45.0]
[1724716050020,6.3472,157.55,157.52,45.0]
[1724716050428,18.62068669,157.55,157.51,6.3487]
[1724716053214,18.62068669,157.55,157.5,15.8725]
[1724716053215,18.62068669,157.55,157.5,22.2216]
[1724716053419,18.62068669,157.55,157.51,45.0]
[1724716056123,12.27348669,157.53,157.51,45.0]
[1724716060030,18.62068669,157.55,157.51,45.0]
[1724716061254,6.3476,157.54,157.51,45.0]
[1724716062937,18.62078669,157.55,157.51,45.0]
[1724716063938,18.62078669,157.55,157.51,51.3488]
[1724716064960,12.27348669,157.55,157.52,6.3483]
[1724716065261,18.61998669,157.57,157.53,51.3479]
[1724716065439,18.61998669,157.57,157.53,45.0]
[1724716068962,12.27348669,157.55,157.51,6.3487]
[1724716069131,12.27348669,157.55,157.52,46.58947211]
[1724716069461,12.27348669,157.55,157.53,1.58947211]
[1724716069635,12.27348669,157.55,157.52,45.0]
[1724716070428,12.27348669,157.55,157.53,1.58948409]
[1724716070625,12.27348669,157.55,157.52,45.0]
[1724716070858,12.27348669,157.55,157.53,1.58947293]
[1724716071038,12.27348669,157.55,157.52,45.0]
[1724716071236,18.62068669,157.55,157.53,1.58947277]
[1724716071436,0.82316777,157.54,157.5,22.2215]
[1724716071649,0.82316777,157.54,157.51,6.23632671]
[1724716071650,7.17086777,157.54,157.51,6.23632671]
[1724716071852,6.3468,157.56,157.52,1.58947496]
[1724716072059,18.62068669,157.55,157.53,1.58947496]
[1724716072235,18.62068669,157.55,157.51,6.3487]
[1724716072437,18.62068669,157.55,157.52,1.58947532]
[1724716072749,18.62068669,157.55,157.53,1.58947532]
[1724716073061,18.62068669,157.55,157.51,6.3487]
[1724716073261,18.62068669,157.55,157.52,1.58948419]
[1724716073426,18.62068669,157.55,157.53,1.58948419]
[1724716073630,18.62068669,157.55,157.51,6.3487]
[1724716073825,18.62068669,157.55,157.52,1.58948285]
[1724716074048,18.62068669,157.55,157.53,1.58948285]
[1724716074224,18.62068669,157.55,157.51,6.3487]
[1724716074444,18.62068669,157.55,157.52,1.58948353]
[1724716074642,18.62068669,157.55,157.53,1.58948368]
[1724716075165,18.62068669,157.55,157.51,6.3487]
[1724716075369,18.62068669,157.55,157.52,1.58954961]
[1724716075664,18.62068669,157.55,157.51,6.3487]
[1724716075864,18.62068669,157.55,157.52,1.58954991]
[1724716076041,6.3476,157.54,157.5,22.2216]
[1724716076365,6.3476,157.54,157.51,1.58961566]
[1724716076553,6.3476,157.54,157.52,1.58961566]
[1724716076740,12.27348669,157.53,157.5,22.2216]
[1724716076941,12.27348669,157.53,157.51,1.58961816]
[1724716077155,18.62148669,157.53,157.49,5.95837738]
[1724716077340,12.27348669,157.53,157.5,1.58962813]
[1724716077663,12.27348669,157.53,157.51,1.5897028]
[1724716078040,12.27348669,157.53,157.49,45.0]
[1724716078250,12.27348669,157.53,157.5,1.58970475]
[1724716078457,18.62148669,157.53,157.51,1.58970475]
[1724716078656,18.62148669,157.53,157.49,45.0]
[1724716078966,18.62148669,157.53,157.5,1.58971314]
[1724716079167,18.62148669,157.53,157.51,1.58971314]
[1724716079367,18.62148669,157.53,157.49,45.0]
[1724716079577,18.62148669,157.53,157.5,1.58970426]
[1724716079861,18.62148669,157.53,157.51,1.58970426]
[1724716080061,18.62148669,157.53,157.49,45.0]
[1724716080264,18.62148669,157.53,157.5,6.23710261]
[1724716080457,18.62148669,157.53,157.51,1.58964723]
[1724716080639,18.62148669,157.53,157.49,45.0]
[1724716080838,18.62148669,157.53,157.5,2.86135088]
[1724716081062,18.62148669,157.53,157.51,1.58963938]
[1724716081263,18.62148669,157.53,157.49,1.27176368]
[1724716081449,18.62148669,157.53,157.5,1.58970462]
[1724716081651,18.62148669,157.53,157.51,1.58970462]
[1724716081855,18.62148669,157.53,157.49,1.27176327]
[1724716082083,18.62148669,157.53,157.5,1.58970444]
[1724716082258,18.62148669,157.53,157.51,1.58970444]
[1724716082462,18.62148669,157.53,157.49,1.27176368]
[1724716082681,18.62228669,157.51,157.5,1.58970426]
[1724716082883,6.3492,157.5,157.47,6.60620611]
[1724716083185,18.62228669,157.51,157.48,6.23795379]
[1724716083351,18.62228669,157.51,157.49,1.58983505]
[1724716083546,18.62228669,157.51,157.46,13.77093765]
[1724716083765,18.62228669,157.51,157.47,1.58986049]
[1724716083966,18.62228669,157.51,157.48,1.58986049]
[1724716084183,6.3488,157.51,157.49,1.58986049]
[1724716084359,18.62228669,157.51,157.47,45.0]
[1724716084551,18.62228669,157.51,157.48,4.96617763]
[1724716084751,18.62228669,157.51,157.49,1.58985949]
[1724716084975,18.62228669,157.51,157.47,51.3504]
[1724716085176,18.62228669,157.51,157.48,1.58985949]
[1724716085364,18.62228669,157.51,157.49,1.58985949]
[1724716085699,18.62228669,157.51,157.47,51.3504]
[1724716085851,18.62228669,157.51,157.48,1.58986017]
[1724716086055,18.62228669,157.51,157.49,1.58986017]
[1724716086251,18.62228669,157.51,157.47,51.3504]
[1724716086582,18.62228669,157.51,157.48,1.58986017]
[1724716086955,18.62228669,157.51,157.49,1.58986017]
[1724716087270,18.62228669,157.51,157.47,45.0]
[1724716087465,18.62228669,157.51,157.48,1.58985857]
[1724716087644,18.62228669,157.51,157.49,1.58985857]
[1724716087852,18.62228669,157.51,157.47,45.0]
[1724716088045,18.62228669,157.51,157.48,1.58985722]
[1724716088278,18.62228669,157.51,157.49,1.58985722]
[1724716088475,18.62228669,157.51,157.46,13.77093765]
[1724716088774,18.62228669,157.51,157.47,6.23806608]
[1724716088981,18.62228669,157.51,157.48,1.5898595]
[1724716089177,18.62228669,157.51,157.49,1.5898595]
[1724716089374,18.62228669,157.51,157.46,13.77093765]
[1724716089582,18.62228669,157.51,157.47,6.23803255]
[1724716089878,18.62228669,157.51,157.46,13.77093765]
[1724716090182,18.62228669,157.51,157.47,2.86174857]
[1724716090383,18.62228669,157.51,157.48,1.58986017]
[1724716090584,18.62228669,157.51,157.47,1.27188787]
[1724716090792,18.62228669,157.51,157.48,1.58985984]
[1724716091081,18.62228669,157.51,157.47,1.2718954]
[1724716091382,18.62228669,157.51,157.48,1.58986958]
[1724716091678,6.3493,157.5,157.46,13.77093765]
[1724716091980,6.3493,157.5,157.47,1.58987078]
[1724716092180,6.3493,157.5,157.48,1.58987078]
[1724716092489,6.3493,157.5,157.46,13.77093765]
[1724716092667,6.3493,157.5,157.47,1.58987111]
[1724716092969,6.3493,157.5,157.48,1.58987111]
[1724716093205,6.3493,157.5,157.46,13.77093765]
[1724716093568,6.3493,157.5,157.47,1.58987177]
[1724716093751,6.3493,157.5,157.48,1.58987177]
[1724716093948,6.3493,157.5,157.46,13.77093765]
[1724716094182,6.3493,157.5,157.47,1.58987177]
[1724716094375,6.3493,157.5,157.48,1.58987177]
[1724716094586,6.3493,157.5,157.46,13.77093765]
[1724716094893,6.3493,157.5,157.47,1.58987177]
[1724716095088,6.3493,157.5,157.48,1.58987177]
[1724716095387,6.3493,157.5,157.46,13.77093765]
[1724716095590,6.3493,157.5,157.47,1.58987111]
[1724716095888,6.3493,157.5,157.48,1.58987111]
[1724716096086,6.3493,157.5,157.46,13.77093765]
[1724716096260,6.3493,157.5,157.47,1.5898718]
[1724716096587,6.3493,157.5,157.48,1.5898718]
[1724716096761,13.09665446,157.49,157.46,7.42033765]
[1724716097085,13.09665446,157.49,157.47,1.58987113]
[1724716097269,13.09665446,157.49,157.48,1.58987113]
[1724716098071,12.27348669,157.49,157.48,1.58987113]
[1724716099591,12.27348669,157.49,157.46,0.817899]
[1724716099793,12.27348669,157.49,157.46,7.168599]
[1724716099963,12.27348669,157.49,157.47,1.58987182]
[1724716100159,12.27348669,157.49,157.48,1.58987182]
[1724716102185,18.62308669,157.49,157.48,1.58987182]
[1724716102381,18.62308669,157.49,157.46,0.817899]
[1724716102579,18.62308669,157.49,157.47,1.58994617]
[1724716102580,22.4528,157.48,157.47,1.58994617]
[1724716102783,22.4528,157.48,157.33,18.60548669]
[1724716102784,12.27348669,157.47,157.33,18.60548669]